[Event "LASK Schackstudion IM Tournament"]
[Site "Lund, Sweden"]
[Date "2022.08.18"]
[Round "6.4"]
[White "Kristensen, Kaare Hove"]
[Black "Magnusson, Jorgen"]
[Result "1/2-1/2"]
[TimeControl "90 minutes + 30 sec increment starting from move 1."]
[WhiteTitle "IM"]
[BlackTitle "FM"]
[WhiteFideId "1400940"]
[BlackFideId "1700880"]
[WhiteElo "2274"]
[BlackElo "2292"]

1. e4 {[%emt 03:23:43]} c6 {[%emt 00:01:10]} 2. d4 {[%emt 00:00:09]} d5 {[%emt
00:00:42]} 3. exd5 {[%emt 00:00:12]} cxd5 {[%emt 00:00:17]} 4. c4 {[%emt
00:00:12]} Nf6 {[%emt 00:00:15]} 5. Nc3 {[%emt 00:00:08]} g6 {[%emt 00:00:52]}
6. Qb3 {[%emt 00:03:03]} Bg7 7. cxd5 O-O {[%emt 00:00:06]} 8. Be2 {[%emt
00:00:20]} Na6 {[%emt 00:01:19]} 9. Bf3 {[%emt 00:18:31]} Qb6 {[%emt 00:00:49]}
10. Qxb6 {[%emt 00:00:48]} axb6 {[%emt 00:00:17]} 11. Bf4 {[%emt 00:02:17]} Nb4
{[%emt 00:09:45]} 12. Kd2 {[%emt 00:12:13]} Rd8 {[%emt 00:07:21]} 13. d6 {[%emt
00:10:01]} exd6 {[%emt 00:03:04]} 14. Nge2 {[%emt 00:00:26]} d5 {[%emt
00:12:33]} 15. a3 {[%emt 00:02:34]} Nc6 {[%emt 00:00:23]} 16. Bc7 {[%emt
00:05:06]} Bh6+ {[%emt 00:22:24]} 17. Kc2 {[%emt 00:00:26]} Bf5+ {[%emt
00:00:43]} 18. Kb3 {[%emt 00:00:18]} Rd7 {[%emt 00:03:09]} 19. Bxb6 {[%emt
00:01:20]} Ra6 {[%emt 00:09:38]} 20. Bc5 {[%emt 00:00:15]} Na5+ {[%emt
00:00:41]} 21. Ka2 {[%emt 00:01:22]} Bd3 {[%emt 00:04:58]} 22. Nc1 {[%emt
00:11:41]} Bxc1 {[%emt 00:09:54]} 23. Raxc1 {[%emt 00:00:41]} Bc4+ {[%emt
00:00:23]} 24. Kb1 {[%emt 00:01:14]} Bd3+ {[%emt 00:00:26]} 25. Ka2 {[%emt
00:00:50]} Bc4+ {[%emt 00:00:47]} 26. Kb1 {[%emt 00:00:12]} Bd3+ {[%emt
00:03:50]} 27. Ka2 1/2-1/2

[Event "LASK Schackstudion IM Tournament"]
[Site "Lund, Sweden"]
[Date "2022.08.18"]
[Round "6.5"]
[White "Rozentalis, Eduardas"]
[Black "Storme, Isak"]
[Result "1-0"]
[TimeControl "90 minutes + 30 sec increment starting from move 1."]
[WhiteTitle "GM"]
[BlackTitle "FM"]
[WhiteFideId "12800023"]
[BlackFideId "1728113"]
[WhiteElo "2493"]
[BlackElo "2416"]

1. e4 {[%clk 01:30:57]} {[%emt 00:00:01]} e6 {[%clk 01:29:43]} {[%emt
00:01:03]} 2. d4 {[%clk 01:30:51]} {[%emt 00:00:49]} d5 {[%clk 01:30:06]}
{[%emt 00:00:07]} 3. Nd2 {[%clk 01:30:21]} {[%emt 00:01:00]} c5 {[%clk
01:30:28]} {[%emt 00:00:08]} 4. Ngf3 {[%clk 01:30:02]} {[%emt 00:00:50]} cxd4
{[%clk 01:30:22]} {[%emt 00:00:37]} 5. exd5 {[%clk 01:29:34]} {[%emt 00:00:57]}
Qxd5 {[%clk 01:30:42]} {[%emt 00:00:10]} 6. Bc4 {[%clk 01:30:00]} {[%emt
00:00:03]} Qd6 {[%clk 01:30:46]} {[%emt 00:00:26]} 7. O-O {[%clk 01:25:04]}
{[%emt 00:05:28]} Nf6 {[%clk 01:30:31]} {[%emt 00:00:45]} 8. Nb3 {[%clk
01:25:23]} {[%emt 00:00:11]} Nc6 {[%clk 01:30:27]} {[%emt 00:00:33]} 9. Re1
{[%clk 01:23:23]} {[%emt 00:02:30]} Be7 {[%clk 01:27:00]} {[%emt 00:03:57]} 10.
Nbxd4 {[%clk 01:22:56]} {[%emt 00:00:57]} Nxd4 {[%clk 01:27:18]} {[%emt
00:00:13]} 11. Nxd4 {[%clk 01:23:12]} {[%emt 00:00:14]} O-O {[%clk 01:24:58]}
{[%emt 00:02:48]} 12. c3 {[%clk 01:21:42]} {[%emt 00:02:01]} Bd7 {[%clk
01:16:15]} {[%emt 00:09:14]} 13. Qf3 {[%clk 01:20:08]} {[%emt 00:02:03]} Qc7
{[%clk 01:12:28]} {[%emt 00:04:17]} 14. Bd3 {[%clk 01:15:53]} {[%emt 00:04:44]}
Rfe8 {[%clk 00:51:45]} {[%emt 00:21:14]} 15. Bg5 {[%clk 01:10:35]} {[%emt
00:05:48]} Nd5 {[%clk 00:49:44]} {[%emt 00:02:30]} 16. h4 {[%clk 00:54:13]}
{[%emt 00:16:52]} Bxg5 {[%clk 00:43:26]} {[%emt 00:06:49]} 17. hxg5 {[%clk
00:54:12]} {[%emt 00:00:31]} Nf4 {[%clk 00:38:18]} {[%emt 00:05:38]} 18. Be4
{[%clk 00:44:32]} {[%emt 00:10:11]} e5 {[%clk 00:38:14]} {[%emt 00:00:34]} 19.
Nb3 {[%clk 00:42:19]} {[%emt 00:02:42]} Bc6 {[%clk 00:33:58]} {[%emt 00:04:46]}
20. Bxc6 {[%clk 00:40:27]} {[%emt 00:02:23]} bxc6 {[%clk 00:34:09]} {[%emt
00:00:19]} 21. Rad1 {[%clk 00:40:17]} {[%emt 00:00:39]} Rad8 {[%clk 00:30:08]}
{[%emt 00:04:32]} 22. Rxd8 {[%clk 00:38:55]} {[%emt 00:01:52]} Rxd8 {[%clk
00:30:24]} {[%emt 00:00:14]} 23. Qe3 {[%clk 00:37:59]} {[%emt 00:01:24]} Nd3
{[%clk 00:27:59]} {[%emt 00:02:57]} 24. Rd1 {[%clk 00:29:36]} {[%emt 00:08:53]}
Nxb2 {[%clk 00:27:55]} {[%emt 00:00:34]} 25. Rxd8+ {[%clk 00:29:52]} {[%emt
00:00:14]} Qxd8 {[%clk 00:28:16]} {[%emt 00:00:09]} 26. Qxe5 {[%clk 00:29:45]}
{[%emt 00:00:36]} Nc4 {[%clk 00:21:05]} {[%emt 00:07:41]} 27. Qe2 {[%clk
00:18:36]} {[%emt 00:11:39]} Nb6 {[%clk 00:20:50]} {[%emt 00:00:46]} 28. Nd4
{[%clk 00:17:36]} {[%emt 00:01:30]} g6 {[%clk 00:19:55]} {[%emt 00:01:24]} 29.
Qe5 {[%clk 00:16:39]} {[%emt 00:01:26]} Qd7 {[%clk 00:16:26]} {[%emt 00:04:00]}
30. Qc5 {[%clk 00:10:59]} {[%emt 00:06:10]} Qd5 {[%clk 00:16:10]} {[%emt
00:00:46]} 31. Qxd5 {[%clk 00:10:35]} {[%emt 00:00:55]} Nxd5 {[%clk 00:14:34]}
{[%emt 00:02:06]} 32. c4 {[%clk 00:10:13]} {[%emt 00:00:52]} Ne7 {[%clk
00:14:47]} {[%emt 00:00:16]} 33. f4 {[%clk 00:09:29]} {[%emt 00:01:14]} Kf8
{[%clk 00:13:53]} {[%emt 00:01:24]} 34. Kf2 {[%clk 00:08:59]} {[%emt 00:01:00]}
Ke8 {[%clk 00:14:01]} {[%emt 00:00:23]} 35. Kf3 {[%clk 00:07:19]} {[%emt
00:02:10]} Kd7 {[%clk 00:13:58]} {[%emt 00:00:33]} 36. Ke4 {[%clk 00:07:06]}
{[%emt 00:00:43]} Kd6 {[%clk 00:13:53]} {[%emt 00:00:35]} 37. Nb3 {[%clk
00:07:31]} {[%emt 00:00:05]} Ke6 {[%clk 00:11:08]} {[%emt 00:03:15]} 38. Nc5+
{[%clk 00:05:48]} {[%emt 00:02:14]} Kd6 {[%clk 00:11:17]} {[%emt 00:00:20]} 39.
Nd3 {[%clk 00:05:45]} {[%emt 00:00:33]} c5 {[%clk 00:09:42]} {[%emt 00:02:05]}
40. Ne5 {[%clk 00:05:47]} {[%emt 00:00:28]} Ke6 {[%clk 00:10:07]} {[%emt
00:00:06]} 41. g4 {[%clk 00:06:08]} {[%emt 00:00:09]} f5+ {[%clk 00:06:42]}
{[%emt 00:03:54]} 42. gxf6 {[%clk 00:06:34]} {[%emt 00:00:05]} Kxf6 {[%clk
00:07:04]} {[%emt 00:00:08]} 43. Nd7+ {[%clk 00:06:58]} {[%emt 00:00:05]} Kf7
{[%clk 00:06:03]} {[%emt 00:01:32]} 44. g5 {[%clk 00:06:57]} {[%emt 00:00:31]}
Ke6 {[%clk 00:06:09]} {[%emt 00:00:22]} 45. Nxc5+ {[%clk 00:07:02]} {[%emt
00:00:27]} Kd6 {[%clk 00:06:31]} {[%emt 00:00:07]} 46. Nb3 {[%clk 00:06:44]}
{[%emt 00:00:48]} Nf5 {[%clk 00:05:37]} {[%emt 00:01:24]} 47. c5+ {[%clk
00:07:06]} {[%emt 00:00:09]} Kd7 {[%clk 00:05:44]} {[%emt 00:00:22]} 48. Nd4
{[%clk 00:07:24]} {[%emt 00:00:11]} Ng3+ {[%clk 00:05:52]} {[%emt 00:00:22]} 49.
Kd5 {[%clk 00:07:31]} {[%emt 00:00:24]} Nh5 {[%clk 00:06:09]} {[%emt 00:00:12]}
50. c6+ {[%clk 00:07:47]} {[%emt 00:00:15]} Kc8 {[%clk 00:05:04]} {[%emt
00:00:07]} 51. Kd6 {[%clk 00:07:46]} {[%emt 00:00:31]} Ng7 {[%clk 00:06:08]}
{[%emt 00:00:53]} 52. Nb5 {[%clk 00:07:37]} {[%emt 00:00:39]} Nf5+ {[%clk
00:05:44]} {[%emt 00:00:55]} 53. Kc5 {[%clk 00:07:34]} {[%emt 00:00:32]} h5
{[%clk 00:06:07]} {[%emt 00:00:07]} 54. gxh6 {[%clk 00:07:55]} {[%emt
00:00:11]} Nxh6 {[%clk 00:06:26]} {[%emt 00:00:09]} 55. Nxa7+ {[%clk 00:08:22]}
{[%emt 00:00:04]} Kc7 {[%clk 00:06:35]} {[%emt 00:00:21]} 56. Nb5+ {[%clk
00:08:45]} {[%emt 00:00:06]} 1-0

[Event "LASK Schackstudion IM Tournament"]
[Site "Lund, Sweden"]
[Date "2022.08.19"]
[Round "7.2"]
[White "Jepson, Christian"]
[Black "Larkin, Vadyslav"]
[Result "1/2-1/2"]
[TimeControl "90 minutes + 30 sec increment starting from move 1."]
[WhiteTitle "IM"]
[BlackTitle "IM"]
[WhiteFideId "1701185"]
[BlackFideId "14152894"]
[WhiteElo "2395"]
[BlackElo "2447"]

1. Nf3 {[%clk 01:27:28]} {[%emt 00:02:37]} Nf6 {[%clk 01:27:33]} {[%emt
00:03:28]} 2. c4 {[%clk 01:27:49]} {[%emt 00:00:08]} e6 {[%clk 01:27:40]}
{[%emt 00:00:23]} 3. g3 {[%clk 01:27:54]} {[%emt 00:00:25]} b6 {[%clk
01:27:41]} {[%emt 00:00:31]} 4. Bg2 {[%clk 01:28:01]} {[%emt 00:00:22]} Bb7
{[%clk 01:28:07]} {[%emt 00:00:04]} 5. O-O {[%clk 01:28:17]} {[%emt 00:00:13]}
Be7 {[%clk 01:28:34]} {[%emt 00:00:04]} 6. Nc3 {[%clk 01:27:36]} {[%emt
00:01:11]} O-O {[%clk 01:28:30]} {[%emt 00:00:34]} 7. Re1 {[%clk 01:27:28]}
{[%emt 00:00:38]} d6 {[%clk 01:18:09]} {[%emt 00:10:53]} 8. e4 {[%clk
01:27:38]} {[%emt 00:00:19]} c5 {[%clk 01:18:35]} {[%emt 00:00:04]} 9. d4
{[%clk 01:28:00]} {[%emt 00:00:08]} cxd4 {[%clk 01:19:01]} {[%emt 00:00:04]} 10.
Nxd4 {[%clk 01:28:23]} {[%emt 00:00:06]} Qc8 {[%clk 01:19:14]} {[%emt
00:00:18]} 11. Be3 {[%clk 01:26:09]} {[%emt 00:02:43]} Nbd7 {[%clk 01:02:42]}
{[%emt 00:17:03]} 12. f4 {[%clk 01:23:14]} {[%emt 00:03:24]} a6 {[%clk
00:57:17]} {[%emt 00:05:56]} 13. Rc1 {[%clk 01:22:07]} {[%emt 00:01:37]} Ra7
{[%clk 00:56:33]} {[%emt 00:01:14]} 14. Bf2 {[%clk 01:21:34]} {[%emt 00:01:03]}
Qa8 {[%clk 00:56:29]} {[%emt 00:00:34]} 15. f5 {[%clk 01:07:06]} {[%emt
00:14:58]} e5 {[%clk 00:55:37]} {[%emt 00:01:23]} 16. Nc2 {[%clk 01:05:48]}
{[%emt 00:01:47]} Rc8 {[%clk 00:55:39]} {[%emt 00:00:28]} 17. Qe2 {[%clk
01:00:07]} {[%emt 00:06:11]} g6 {[%clk 00:44:37]} {[%emt 00:11:32]} 18. fxg6
{[%clk 00:51:54]} {[%emt 00:08:43]} hxg6 {[%clk 00:45:01]} {[%emt 00:00:06]} 19.
Bh3 {[%clk 00:52:08]} {[%emt 00:00:15]} Kg7 {[%clk 00:26:19]} {[%emt 00:19:12]}
20. Ne3 {[%clk 00:38:04]} {[%emt 00:14:34]} Rh8 {[%clk 00:17:30]} {[%emt
00:09:20]} 21. Bxd7 {[%clk 00:38:01]} {[%emt 00:00:33]} Nxd7 {[%clk 00:17:48]}
{[%emt 00:00:12]} 22. Ncd5 {[%clk 00:37:24]} {[%emt 00:01:06]} Bg5 {[%clk
00:14:11]} {[%emt 00:04:07]} 23. h4 {[%clk 00:27:27]} {[%emt 00:10:27]} Bxe3
{[%clk 00:05:08]} {[%emt 00:09:34]} 24. Bxe3 {[%clk 00:22:51]} {[%emt
00:05:06]} Bxd5 {[%clk 00:04:54]} {[%emt 00:00:45]} 25. cxd5 {[%clk 00:23:15]}
{[%emt 00:00:05]} Nc5 {[%clk 00:05:21]} {[%emt 00:00:03]} 26. Rc4 {[%clk
00:05:12]} {[%emt 00:18:33]} a5 {[%clk 00:05:47]} {[%emt 00:00:05]} 27. Qf3
{[%clk 00:05:03]} {[%emt 00:00:39]} f6 {[%clk 00:05:22]} {[%emt 00:00:55]} 28.
Rf1 {[%clk 00:05:07]} {[%emt 00:00:26]} Rf7 {[%clk 00:05:43]} {[%emt 00:00:08]}
29. a3 {[%clk 00:04:39]} {[%emt 00:00:58]} a4 {[%clk 00:05:40]} {[%emt
00:00:33]} 30. Rb4 {[%clk 00:04:32]} {[%emt 00:00:37]} Qa6 {[%clk 00:05:33]}
{[%emt 00:00:37]} 31. Qd1 {[%clk 00:04:35]} {[%emt 00:00:26]} Ra7 {[%clk
00:01:01]} {[%emt 00:05:02]} 32. Qf3 {[%clk 00:03:54]} {[%emt 00:01:11]}
1/2-1/2

[Event "LASK Schackstudion IM Tournament"]
[Site "Lund, Sweden"]
[Date "2022.08.19"]
[Round "7.3"]
[White "Storme, Isak"]
[Black "Jacobsen, Mikkel Manosri"]
[Result "1-0"]
[TimeControl "90 minutes + 30 sec increment starting from move 1."]
[WhiteTitle "FM"]
[BlackTitle "FM"]
[WhiteFideId "1728113"]
[BlackFideId "1444514"]
[WhiteElo "2416"]
[BlackElo "2320"]

1. e4 {[%clk 01:28:16]} {[%emt 00:02:43]} c6 {[%clk 01:30:03]} {[%emt
00:00:58]} 2. d4 {[%clk 01:24:26]} {[%emt 00:04:18]} d5 {[%clk 01:30:29]}
{[%emt 00:00:05]} 3. e5 {[%clk 01:24:49]} {[%emt 00:00:06]} Bf5 {[%clk
01:30:52]} {[%emt 00:00:07]} 4. Nd2 {[%clk 01:24:40]} {[%emt 00:00:40]} e6
{[%clk 01:31:14]} {[%emt 00:00:08]} 5. Nb3 {[%clk 01:25:01]} {[%emt 00:00:09]}
Ne7 {[%clk 01:31:39]} {[%emt 00:00:05]} 6. Nf3 {[%clk 01:25:22]} {[%emt
00:00:09]} Nd7 {[%clk 01:32:05]} {[%emt 00:00:04]} 7. Be2 {[%clk 01:25:24]}
{[%emt 00:00:29]} h6 {[%clk 01:32:31]} {[%emt 00:00:05]} 8. O-O {[%clk
01:25:43]} {[%emt 00:00:10]} g5 {[%clk 01:32:43]} {[%emt 00:00:18]} 9. Ne1
{[%clk 01:24:56]} {[%emt 00:01:17]} Bg7 {[%clk 01:31:02]} {[%emt 00:02:10]} 10.
f4 {[%clk 01:23:56]} {[%emt 00:01:30]} Qc7 {[%clk 01:30:20]} {[%emt 00:01:13]}
11. Bh5 {[%clk 01:21:01]} {[%emt 00:03:25]} Bg6 {[%clk 01:28:43]} {[%emt
00:02:06]} 12. Bxg6 {[%clk 01:16:25]} {[%emt 00:05:07]} Nxg6 {[%clk 01:29:04]}
{[%emt 00:00:09]} 13. Nd3 {[%clk 01:09:29]} {[%emt 00:07:26]} b6 {[%clk
01:23:26]} {[%emt 00:06:09]} 14. fxg5 {[%clk 01:03:10]} {[%emt 00:06:49]} hxg5
{[%clk 01:23:37]} {[%emt 00:00:19]} 15. Bxg5 {[%clk 01:00:13]} {[%emt
00:03:26]} c5 {[%clk 01:10:36]} {[%emt 00:13:31]} 16. Qg4 {[%clk 00:51:06]}
{[%emt 00:09:36]} c4 {[%clk 01:05:18]} {[%emt 00:05:48]} 17. Rxf7 {[%clk
00:50:43]} {[%emt 00:00:54]} Kxf7 {[%clk 01:05:40]} {[%emt 00:00:08]} 18. Rf1+
{[%clk 00:51:03]} {[%emt 00:00:09]} Kg8 {[%clk 01:06:05]} {[%emt 00:00:05]} 19.
Qxe6+ {[%clk 00:51:22]} {[%emt 00:00:12]} Kh7 {[%clk 01:06:29]} {[%emt
00:00:06]} 20. Rf3 {[%clk 00:51:04]} {[%emt 00:00:47]} Ndf8 {[%clk 01:01:38]}
{[%emt 00:05:22]} 21. Rh3+ {[%clk 00:51:22]} {[%emt 00:00:12]} Bh6 {[%clk
01:01:50]} {[%emt 00:00:17]} 22. Rxh6+ {[%clk 00:51:41]} {[%emt 00:00:11]} Kg7
{[%clk 01:02:10]} {[%emt 00:00:11]} 23. Bf6+ {[%clk 00:50:58]} {[%emt
00:01:13]} Kxh6 {[%clk 01:02:27]} {[%emt 00:00:13]} 24. Qh3+ {[%clk 00:51:20]}
{[%emt 00:00:07]} Nh4 {[%clk 01:02:36]} {[%emt 00:00:22]} 25. Qxh4+ {[%clk
00:51:40]} {[%emt 00:00:11]} Kg6 {[%clk 01:02:51]} {[%emt 00:00:15]} 26. Qg5+
{[%clk 00:51:45]} {[%emt 00:00:25]} Kf7 {[%clk 01:01:32]} {[%emt 00:01:49]} 27.
Qg7+ {[%clk 00:52:07]} {[%emt 00:00:08]} 1-0

[Event "LASK Schackstudion IM Tournament"]
[Site "Lund, Sweden"]
[Date "2022.08.19"]
[Round "7.4"]
[White "Magnusson, Jorgen"]
[Black "Jogstad, Martin"]
[Result "0-1"]
[TimeControl "90 minutes + 30 sec increment starting from move 1."]
[WhiteTitle "FM"]
[BlackTitle "FM"]
[WhiteFideId "1700880"]
[BlackFideId "1715364"]
[WhiteElo "2292"]
[BlackElo "2354"]

1. Nf3 {[%emt 16:16:55]} d5 {[%emt 00:00:12]} 2. d4 {[%emt 00:01:22]} Nf6
{[%emt 00:00:20]} 3. Bf4 {[%emt 00:01:09]} e6 {[%emt 00:00:35]} 4. c3 {[%emt
00:02:45]} Bd6 {[%emt 00:00:14]} 5. e3 {[%emt 00:00:36]} O-O {[%emt 00:01:13]}
6. Nbd2 {[%emt 00:01:19]} b6 {[%emt 00:00:25]} 7. a4 {[%emt 00:06:33]} Bxf4
{[%emt 00:14:21]} 8. exf4 {[%emt 00:00:52]} c5 {[%emt 00:01:38]} 9. g3 {[%emt
00:04:37]} Ba6 {[%emt 00:14:44]} 10. Bxa6 {[%emt 00:00:46]} Nxa6 {[%emt
00:00:04]} 11. Qe2 {[%emt 00:00:33]} Nb8 {[%emt 00:02:14]} 12. b4 {[%emt
00:10:02]} cxb4 {[%emt 00:06:04]} 13. cxb4 {[%emt 00:00:19]} Nc6 {[%emt
00:00:29]} 14. b5 {[%emt 00:01:11]} Na5 {[%emt 00:00:49]} 15. O-O {[%emt
00:00:37]} Qd6 {[%emt 00:00:47]} 16. Qe5 {[%emt 00:17:23]} Qe7 {[%emt
00:18:14]} 17. Rfe1 {[%emt 00:10:37]} Rfe8 {[%emt 00:04:53]} 18. h3 {[%emt
00:05:29]} Rac8 {[%emt 00:01:37]} 19. Rac1 {[%emt 00:01:13]} Qa3 {[%emt
00:09:32]} 20. Rxc8 {[%emt 00:00:43]} Rxc8 {[%emt 00:00:03]} 21. Ng5 {[%emt
00:05:49]} Qc3 {[%emt 00:12:11]} 22. Nxf7 {[%emt 00:19:04]} Kxf7 {[%emt
00:00:27]} 23. Qxe6+ {[%emt 00:00:24]} Kf8 {[%emt 00:00:16]} 24. Nf3 {[%emt
00:02:40]} Qc7 {[%emt 00:03:00]} 25. Ng5 {[%emt 00:00:43]} h6 {[%emt 00:03:08]}
26. Qf5 {[%emt 00:01:41]} hxg5 {[%emt 00:02:12]} 27. fxg5 {[%emt 00:00:06]} Re8
{[%emt 00:00:49]} 28. Re5 {[%emt 00:02:04]} Qd7 {[%emt 00:00:22]} 29. gxf6
{[%emt 00:01:50]} Qxf5 {[%emt 00:00:05]} 30. fxg7+ {[%emt 00:00:13]} Kxg7
{[%emt 00:00:07]} 31. Rxf5 {[%emt 00:00:13]} Rd8 {[%emt 00:00:42]} 32. h4
{[%emt 00:00:39]} Nb3 {[%emt 00:00:13]} 33. Rf4 {[%emt 00:01:49]} Re8 {[%emt
00:00:37]} 34. g4 {[%emt 00:00:22]} Re1+ {[%emt 00:00:47]} 35. Kg2 {[%emt
00:00:24]} Rd1 36. h5 {[%emt 00:01:41]} Nxd4 {[%emt 00:01:09]} 37. g5 {[%emt
00:01:02]} Rg1+ {[%emt 00:00:19]} 38. Kh2 {[%emt 00:00:53]} Rxg5 {[%emt
00:00:30]} 39. Rxd4 {[%emt 00:00:04]} Rxh5+ {[%emt 00:00:06]} 40. Kg3 {[%emt
00:00:18]} Kf6 {[%emt 00:00:21]} 41. f4 {[%emt 00:00:32]} Ke6 {[%emt 00:00:22]}
42. Rd2 {[%emt 00:00:51]} Rh1 {[%emt 00:00:32]} 43. Re2+ {[%emt 00:00:34]} Kd6
{[%emt 00:00:45]} 44. Rc2 {[%emt 00:00:37]} Ra1 {[%emt 00:00:33]} 45. Rc6+
{[%emt 00:00:34]} Kd7 {[%emt 00:00:03]} 46. f5 {[%emt 00:00:41]} Rxa4 {[%emt
00:00:12]} 47. f6 {[%emt 00:00:31]} Rc4 {[%emt 00:01:09]} 0-1

[Event "LASK Schackstudion IM Tournament"]
[Site "Lund, Sweden"]
[Date "2022.08.19"]
[Round "7.5"]
[White "Kucuksari, Kaan"]
[Black "Rozentalis, Eduardas"]
[Result "1-0"]
[TimeControl "90 minutes + 30 sec increment starting from move 1."]
[WhiteTitle "FM"]
[BlackTitle "GM"]
[WhiteFideId "6380166"]
[BlackFideId "12800023"]
[WhiteElo "2398"]
[BlackElo "2493"]

1. d4 {[%clk 01:30:50]} {[%emt 00:00:10]} Nf6 {[%clk 01:30:43]} {[%emt
00:00:17]} 2. c4 {[%clk 01:30:35]} {[%emt 00:00:45]} e6 {[%clk 01:31:07]}
{[%emt 00:00:05]} 3. g3 {[%clk 01:30:50]} {[%emt 00:00:16]} Bb4+ {[%clk
01:31:22]} {[%emt 00:00:15]} 4. Bd2 {[%clk 01:31:15]} {[%emt 00:00:05]} a5
{[%clk 01:31:37]} {[%emt 00:00:14]} 5. Bg2 {[%clk 01:31:33]} {[%emt 00:00:12]}
O-O {[%clk 01:31:01]} {[%emt 00:01:05]} 6. Nf3 {[%clk 01:31:02]} {[%emt
00:01:01]} b6 {[%clk 01:31:01]} {[%emt 00:00:30]} 7. O-O {[%clk 01:26:03]}
{[%emt 00:05:30]} Bb7 {[%clk 01:30:58]} {[%emt 00:00:33]} 8. Bg5 {[%clk
01:26:04]} {[%emt 00:00:29]} Be7 {[%clk 01:30:05]} {[%emt 00:01:23]} 9. Bxf6
{[%clk 01:16:50]} {[%emt 00:09:45]} Bxf6 {[%clk 01:30:16]} {[%emt 00:00:19]} 10.
Nc3 {[%clk 01:17:16]} {[%emt 00:00:05]} d6 {[%clk 01:25:26]} {[%emt 00:05:20]}
11. Qc2 {[%clk 01:08:28]} {[%emt 00:09:19]} g6 {[%clk 01:23:43]} {[%emt
00:02:13]} 12. Rad1 {[%clk 01:07:12]} {[%emt 00:01:46]} Nd7 {[%clk 01:20:52]}
{[%emt 00:03:20]} 13. Rfe1 {[%clk 01:00:32]} {[%emt 00:07:10]} Bg7 {[%clk
01:13:33]} {[%emt 00:07:48]} 14. e4 {[%clk 00:54:07]} {[%emt 00:06:56]} Qe7
{[%clk 01:05:57]} {[%emt 00:08:05]} 15. h4 {[%clk 00:53:07]} {[%emt 00:01:31]}
Rab8 {[%clk 00:56:06]} {[%emt 00:10:21]} 16. Bh3 {[%clk 00:52:01]} {[%emt
00:01:36]} Rbe8 {[%clk 00:49:55]} {[%emt 00:06:40]} 17. Kh2 {[%clk 00:34:04]}
{[%emt 00:18:28]} Kh8 {[%clk 00:44:16]} {[%emt 00:06:08]} 18. Nb5 {[%clk
00:30:26]} {[%emt 00:04:08]} Nb8 {[%clk 00:39:00]} {[%emt 00:05:45]} 19. h5
{[%clk 00:27:16]} {[%emt 00:03:41]} Nc6 {[%clk 00:38:04]} {[%emt 00:01:26]} 20.
d5 {[%clk 00:19:20]} {[%emt 00:08:28]} Ne5 {[%clk 00:31:30]} {[%emt 00:07:03]}
21. Nfd4 {[%clk 00:14:58]} {[%emt 00:04:52]} gxh5 {[%clk 00:27:59]} {[%emt
00:04:00]} 22. f4 {[%clk 00:12:57]} {[%emt 00:02:31]} Ng4+ {[%clk 00:27:35]}
{[%emt 00:00:53]} 23. Bxg4 {[%clk 00:12:06]} {[%emt 00:01:22]} hxg4 {[%clk
00:28:00]} {[%emt 00:00:05]} 24. Kg2 {[%clk 00:10:13]} {[%emt 00:02:23]} exd5
{[%clk 00:17:24]} {[%emt 00:11:07]} 25. cxd5 {[%clk 00:09:37]} {[%emt
00:01:05]} Qd7 {[%clk 00:17:06]} {[%emt 00:00:48]} 26. a4 {[%clk 00:03:11]}
{[%emt 00:06:56]} f5 {[%clk 00:14:21]} {[%emt 00:03:15]} 27. Nxf5 {[%clk
00:03:05]} {[%emt 00:00:37]} Rxf5 {[%clk 00:14:45]} {[%emt 00:00:06]} 28. exf5
{[%clk 00:03:32]} {[%emt 00:00:02]} Rxe1 {[%clk 00:14:45]} {[%emt 00:00:30]} 29.
Rxe1 {[%clk 00:04:01]} {[%emt 00:00:01]} Bxd5+ {[%clk 00:15:09]} {[%emt
00:00:05]} 30. Kf1 {[%clk 00:03:44]} {[%emt 00:00:47]} c6 {[%clk 00:14:59]}
{[%emt 00:00:40]} 31. Qd3 {[%clk 00:01:05]} {[%emt 00:03:09]} Kg8 {[%clk
00:08:47]} {[%emt 00:06:41]} 32. Nc3 {[%clk 00:00:43]} {[%emt 00:00:52]} Bf7
{[%clk 00:08:57]} {[%emt 00:00:21]} 33. Ne4 {[%clk 00:00:45]} {[%emt 00:00:28]}
Qxf5 {[%clk 00:08:25]} {[%emt 00:01:01]} 34. Qxd6 {[%clk 00:01:13]} {[%emt
00:00:03]} h6 {[%clk 00:03:18]} {[%emt 00:05:37]} 35. Qxc6 {[%clk 00:01:03]}
{[%emt 00:00:39]} Bd5 {[%clk 00:03:02]} {[%emt 00:00:45]} 36. Qe8+ {[%clk
00:00:57]} {[%emt 00:00:38]} Kh7 {[%clk 00:03:18]} {[%emt 00:00:12]} 37. Qe7
{[%clk 00:00:52]} {[%emt 00:00:36]} Kh8 {[%clk 00:03:03]} {[%emt 00:00:45]} 38.
Qe8+ {[%clk 00:01:08]} {[%emt 00:00:14]} Kh7 {[%clk 00:03:32]} {[%emt
00:00:01]} 39. Qe7 {[%clk 00:01:22]} {[%emt 00:00:15]} Kh8 {[%clk 00:04:00]}
{[%emt 00:00:02]} 40. Nf2 {[%clk 00:00:42]} {[%emt 00:01:10]} Bxb2 {[%clk
00:03:34]} {[%emt 00:00:57]} 41. Qd8+ {[%clk 00:00:45]} {[%emt 00:00:28]} Kh7
{[%clk 00:03:52]} {[%emt 00:00:11]} 42. Qxb6 {[%clk 00:00:45]} {[%emt
00:00:30]} Bc3 {[%clk 00:03:40]} {[%emt 00:00:40]} 43. Qc7+ {[%clk 00:01:03]}
{[%emt 00:00:11]} Bg7 {[%clk 00:04:05]} {[%emt 00:00:07]} 44. Kg1 {[%clk
00:00:50]} {[%emt 00:00:44]} Bf3 {[%clk 00:03:53]} {[%emt 00:00:42]} 45. Re7
{[%clk 00:00:49]} {[%emt 00:00:30]} Qb1+ {[%clk 00:04:18]} {[%emt 00:00:05]} 46.
Kh2 {[%clk 00:01:14]} {[%emt 00:00:05]} Qb2 {[%clk 00:04:35]} {[%emt 00:00:13]}
47. Qc5 {[%clk 00:01:11]} {[%emt 00:00:33]} Qf6 {[%clk 00:04:12]} {[%emt
00:00:54]} 48. Qe5 {[%clk 00:00:40]} {[%emt 00:01:01]} Qg6 {[%clk 00:04:28]}
{[%emt 00:00:14]} 49. Ne4 {[%clk 00:00:40]} {[%emt 00:00:30]} Kh8 {[%clk
00:04:42]} {[%emt 00:00:15]} 50. Re8+ {[%clk 00:00:56]} {[%emt 00:00:16]} Kh7
{[%clk 00:05:08]} {[%emt 00:00:04]} 51. Re7 {[%clk 00:01:25]} {[%emt 00:00:01]}
Kh8 {[%clk 00:05:37]} 52. Qd5 {[%clk 00:01:36]} {[%emt 00:02:41]} Kh7 {[%clk
00:06:00]} {[%emt 00:00:07]} 53. Re6 {[%clk 00:01:23]} {[%emt 00:00:43]} 1-0